bitfinex/quotes_SOLUSD_20251007
["timestamp","ask_amount","ask_price","bid_price","bid_amount"]
[1759850063367,54.77931432,223.61,223.57,48.18]
[1759850063571,14.95340488,223.58,223.5,99.7543152]
[1759850063791,7.47670244,223.51,223.5,99.7543152]
[1759850063973,8.13670244,223.51,223.5,99.7543152]
[1759850064798,8.13670244,223.51,223.5,147.8943152]
[1759850065103,8.13670244,223.51,223.5,15.87869809]
[1759850065299,10.56943746,223.51,223.5,64.01869809]
[1759850065507,18.0461399,223.51,223.5,64.01869809]
[1759850066501,8.12670244,223.51,223.5,64.01869809]
[1759850066873,8.12670244,223.51,223.5,15.87869809]
[1759850067103,8.12670244,223.51,223.5,63.95869809]
[1759850067409,21.25503235,223.51,223.5,63.95869809]
[1759850067570,8.12670244,223.51,223.5,63.95869809]
[1759850068000,0.65,223.51,223.5,63.95869809]
[1759850069598,20.8,223.52,223.5,63.95869809]
[1759850069599,10.23832287,223.55,223.5,63.95869809]
[1759850069802,7.47670244,223.52,223.5,63.95869809]
[1759850070692,0.65,223.57,223.5,63.95869809]
[1759850070889,7.47670244,223.52,223.5,63.95869809]
[1759850071083,41.1031315,223.6,223.51,0.72]
[1759850071286,7.47670244,223.55,223.52,48.0]
[1759850071489,0.65,223.61,223.52,48.0]
[1759850071692,7.47670244,223.54,223.52,48.0]
[1759850072493,7.47670244,223.54,223.52,48.72]
[1759850072699,7.47670244,223.54,223.52,48.0]
[1759850073699,21.08496708,223.54,223.52,48.0]
[1759850073896,7.47670244,223.56,223.53,0.72]
[1759850074206,20.8,223.54,223.53,0.72]
[1759850074399,20.8,223.54,223.53,48.62]
[1759850075106,7.47670244,223.57,223.53,47.9]
[1759850075284,20.8,223.52,223.5,15.87869809]
[1759850075483,7.47670244,223.51,223.5,15.87869809]
[1759850075701,7.47670244,223.51,223.5,63.75869809]
[1759850075891,8.12670244,223.51,223.5,15.87869809]
[1759850076080,8.12670244,223.51,223.5,63.73869809]
[1759850076400,9.81068288,223.51,223.5,63.73869809]
[1759850076609,9.81068288,223.51,223.5,63.71869809]
[1759850077409,2.33398044,223.51,223.5,63.71869809]
[1759850077711,7.47670244,223.51,223.5,63.71869809]
[1759850078012,28.27670244,223.51,223.5,15.87869809]
[1759850078312,28.27670244,223.51,223.5,63.71869809]
[1759850078515,20.8,223.51,223.5,63.71869809]
[1759850078812,28.99670244,223.51,223.5,63.65869809]
[1759850079107,28.99670244,223.51,223.47,0.1]
[1759850079306,28.27670244,223.48,223.47,0.1]
[1759850080204,27.77670244,223.48,223.47,0.1]
[1759850080414,27.77670244,223.48,223.47,47.86]
[1759850081405,28.49670244,223.48,223.47,47.82]
[1759850081587,28.49670244,223.48,223.47,47.8]
[1759850082514,28.49670244,223.48,223.43,0.1]
[1759850082720,7.47670244,223.44,223.43,0.1]
[1759850082906,7.47670244,223.44,223.37,0.1]
[1759850082907,20.8,223.41,223.37,0.1]
[1759850083221,7.50682855,223.38,223.37,0.1]
[1759850083604,7.50682855,223.38,223.37,47.76]
[1759850084414,7.50682855,223.38,223.37,47.74]
[1759850084804,20.8,223.35,223.29,0.7]
[1759850085007,20.8,223.35,223.3,47.62]
[1759850085308,20.8,223.31,223.3,47.62]
[1759850085609,7.50682855,223.34,223.3,47.62]
[1759850085813,7.50682855,223.34,223.31,0.7]
[1759850085997,0.72,223.44,223.32,0.7]
[1759850086202,4.97451704,223.4,223.32,0.7]
[1759850086399,13.44116131,223.53,223.28,0.7]
[1759850086400,0.72,223.39,223.28,0.7]
[1759850086614,0.72,223.44,223.29,6.78]
[1759850086818,10.01781196,223.46,223.3,0.7]
[1759850086999,14.16116131,223.5,223.3,0.7]
[1759850087201,4.97451704,223.42,223.3,0.7]
[1759850087414,4.97451704,223.37,223.3,0.7]
[1759850087609,4.97451704,223.37,223.31,47.56]
[1759850087807,4.97451704,223.37,223.32,48.24]
[1759850088135,4.97451704,223.37,223.33,48.24]
[1759850088319,4.97451704,223.37,223.34,0.7]
[1759850088514,4.97451704,223.37,223.33,47.54]
[1759850088515,20.8,223.42,223.35,0.7]
[1759850088720,4.97451704,223.39,223.35,0.7]
[1759850089027,20.8,223.45,223.36,0.7]
[1759850089225,4.97451704,223.38,223.36,0.7]
[1759850089417,4.97451704,223.37,223.36,0.7]
[1759850089734,4.97451704,223.37,223.36,47.5]
[1759850089926,20.8,223.43,223.36,47.5]
[1759850090109,4.97451704,223.37,223.36,47.5]
[1759850090511,10.01781196,223.53,223.36,47.48]
[1759850090709,4.97451704,223.4,223.37,0.7]
[1759850090911,5.44922611,223.53,223.38,34.9]
[1759850091113,4.97451704,223.44,223.39,0.7]
[1759850091334,4.97451704,223.42,223.39,0.7]
[1759850091713,4.97451704,223.43,223.39,0.7]
[1759850091918,13.81863706,223.54,223.39,0.7]
[1759850092224,4.97451704,223.44,223.39,0.7]
[1759850092734,13.81863706,223.54,223.39,0.7]
[1759850092735,13.09863706,223.54,223.39,0.7]
[1759850093043,4.97451704,223.5,223.39,0.7]
[1759850093338,4.97451704,223.5,223.4,47.42]
[1759850093513,4.97451704,223.48,223.41,48.1]
[1759850093713,4.97451704,223.48,223.42,0.7]
[1759850094128,4.97451704,223.49,223.42,0.7]
[1759850094321,4.97451704,223.49,223.43,47.38]
[1759850094522,4.97451704,223.49,223.44,0.7]
[1759850095138,4.97451704,223.5,223.44,0.7]
[1759850095532,0.72,223.61,223.44,0.7]
[1759850096047,4.97451704,223.53,223.44,0.7]
[1759850096246,4.97451704,223.53,223.45,47.34]
[1759850096545,4.97451704,223.53,223.46,0.7]
[1759850096921,4.97451704,223.51,223.46,0.7]
[1759850097119,4.97451704,223.51,223.47,48.03]
[1759850097337,4.97451704,223.51,223.48,0.71]
[1759850097540,4.97451704,223.51,223.49,0.71]
[1759850097943,14.16188475,223.58,223.49,0.71]
[1759850098243,4.97451704,223.5,223.49,0.71]
[1759850098428,4.97451704,223.5,223.46,0.71]
[1759850098635,4.97451704,223.48,223.47,47.26]
[1759850099036,4.97451704,223.49,223.47,47.97]
[1759850099239,4.97451704,223.49,223.48,0.71]
[1759850099674,4.97451704,223.49,223.44,0.71]
[1759850099831,25.77451704,223.49,223.45,47.93]
[1759850100030,20.8,223.49,223.46,0.71]
[1759850100233,20.8,223.53,223.46,0.71]
[1759850100438,4.97451704,223.49,223.43,0.71]
[1759850100645,20.8,223.53,223.44,47.91]
[1759850100957,4.97451704,223.49,223.44,0.71]
[1759850101149,20.8,223.54,223.45,47.91]
[1759850101343,4.97451704,223.47,223.41,0.71]
[1759850101550,4.97451704,223.42,223.38,34.9]
[1759850101850,0.72,223.47,223.38,34.9]
[1759850102048,4.97451704,223.4,223.39,47.18]
[1759850102258,20.8,223.43,223.39,47.16]
[1759850102553,4.97451704,223.4,223.39,47.16]
[1759850102735,4.97451704,223.4,223.39,47.14]
[1759850102937,4.97451704,223.4,223.35,0.71]
[1759850103127,4.97451704,223.36,223.32,34.9]
[1759850103333,0.72,223.39,223.33,47.14]
[1759850103648,4.97451704,223.34,223.32,34.9]
[1759850103848,4.97451704,223.34,223.33,47.12]
[1759850104047,20.8,223.43,223.33,0.71]
[1759850104247,4.97451704,223.35,223.33,47.1]
[1759850105452,4.97451704,223.34,223.32,34.9]
[1759850105939,4.97451704,223.34,223.33,47.06]
[1759850106141,4.97451704,223.34,223.32,34.9]
[1759850106142,4.97606864,223.34,223.32,34.9]
[1759850106360,4.97606864,223.34,223.02,22.41874302]
[1759850106361,0.72,223.33,223.21,0.71]
[1759850106536,0.72,223.33,223.23,35.61]
[1759850106886,9.28832661,223.42,223.24,0.71]
[1759850107058,4.97606864,223.36,223.24,0.71]
[1759850107239,0.72,223.42,223.24,0.71]
[1759850107440,4.97606864,223.39,223.24,0.71]
[1759850107658,4.97606864,223.37,223.24,0.71]
[1759850107959,4.97606864,223.35,223.25,47.02]
[1759850108132,4.97606864,223.31,223.26,47.71]
[1759850108337,21.52,223.35,223.26,47.0]
[1759850108338,4.97606864,223.27,223.26,47.0]
[1759850109137,20.8,223.3,223.26,47.71]
[1759850109432,0.72,223.36,223.27,0.71]
[1759850109637,4.97606864,223.31,223.27,0.71]
[1759850109941,4.97606864,223.32,223.28,46.96]
[1759850110141,4.97606864,223.3,223.28,46.96]
[1759850110350,4.97606864,223.31,223.28,46.96]
[1759850110536,20.8,223.35,223.28,46.96]
[1759850110741,4.97606864,223.3,223.23,34.9]
[1759850110938,0.72,223.29,223.23,34.9]
[1759850111143,4.97606864,223.25,223.24,46.94]
[1759850111752,13.54840705,223.35,223.24,47.65]
[1759850111956,0.72,223.39,223.25,0.71]
[1759850112264,4.97606864,223.44,223.27,20.8]
[1759850112448,4.97606864,223.35,223.28,0.71]
[1759850112645,4.97606864,223.31,223.29,46.88]
[1759850112859,20.8,223.41,223.3,0.71]
[1759850113165,0.16958943,257.14,223.32,20.8]
[1759850113166,4.97606864,223.48,223.32,20.8]
[1759850113365,0.72,223.52,223.33,47.59]
[1759850113566,0.72,223.56,223.34,0.71]
[1759850113741,4.97606864,223.5,223.34,0.71]
[1759850114165,20.8,223.53,223.34,0.71]
[1759850114382,4.97606864,223.51,223.35,46.86]
[1759850114674,4.97606864,223.51,223.36,0.71]
[1759850114862,4.97606864,223.47,223.36,0.71]
[1759850115063,4.97606864,223.45,223.37,46.82]
[1759850115260,4.97606864,223.43,223.36,0.71]
[1759850115466,4.97606864,223.42,223.37,46.82]
[1759850115767,4.97606864,223.43,223.37,46.82]
[1759850116145,0.72,223.45,223.37,46.82]
[1759850116472,4.97606864,223.48,223.38,0.71]
[1759850116765,20.8,223.46,223.38,0.71]
[1759850117346,4.97606864,223.46,223.38,0.71]
[1759850117572,4.97606864,223.46,223.3,11.1954738]
[1759850117573,0.72,223.46,223.39,46.78]
[1759850117746,4.97606864,223.42,223.4,46.76]
[1759850117946,5.69606864,223.41,223.32,0.71]
[1759850118143,20.8,223.5,223.33,46.74]
[1759850118346,4.97606864,223.4,223.33,46.74]
[1759850118571,4.97606864,223.35,223.28,0.71]
[1759850118747,0.72,223.39,223.29,46.72]
[1759850118948,4.97606864,223.37,223.29,46.72]
[1759850119154,4.97606864,223.38,223.29,46.72]
[1759850119456,4.97606864,223.4,223.3,0.71]
[1759850119652,0.72,223.44,223.3,0.71]
[1759850119851,4.97606864,223.37,223.22,20.8]
[1759850120056,0.72,223.39,223.27,0.71]
[1759850120355,4.97606864,223.36,223.28,46.68]
[1759850120574,0.72,223.36,223.24,0.71]
[1759850120779,4.97606864,223.31,223.25,46.66]
[1759850120978,4.97606864,223.27,223.23,34.9]
[1759850121152,0.72,223.26,223.24,46.66]
[1759850121352,0.72,223.32,223.24,46.66]
[1759850121556,4.97606864,223.33,223.24,46.66]
[1759850121777,25.77606864,223.31,223.24,46.66]
[1759850121957,20.8,223.31,223.24,46.66]
[1759850122155,0.72,223.38,223.25,0.71]
[1759850122353,4.97606864,223.32,223.25,0.71]
[1759850123164,0.72,223.35,223.25,0.71]
[1759850123451,4.97606864,223.33,223.24,46.66]
[1759850123676,0.72,223.34,223.24,47.37]
[1759850123863,0.72,223.39,223.25,0.71]
[1759850124063,4.97606864,223.34,223.25,0.71]
[1759850124877,4.97606864,223.34,223.25,5.18925218]
[1759850125185,4.97606864,223.36,223.26,0.71]
[1759850125372,4.97606864,223.34,223.26,0.71]
[1759850125564,25.77606864,223.34,223.27,46.54]
[1759850125976,13.44357061,223.48,223.28,0.71]
[1759850126172,0.72,223.47,223.28,0.71]
[1759850126482,0.72,223.47,223.3,20.8]
[1759850126685,4.97606864,223.42,223.31,0.68]
[1759850126872,4.97606864,223.42,223.32,4.47787927]
[1759850127062,4.97606864,223.42,223.3,20.8]
[1759850127063,4.97606864,223.42,223.33,0.68]
[1759850127389,4.97606864,223.4,223.34,46.5]
[1759850127588,4.97606864,223.42,223.35,0.68]
[1759850127881,4.97606864,223.4,223.24,11.19851294]
[1759850128079,4.97606864,223.38,223.29,0.68]
[1759850128285,4.97606864,223.39,223.3,46.46]
[1759850128482,0.7,223.45,223.31,0.68]
[1759850128681,4.97606864,223.44,223.31,0.68]
[1759850128865,0.7,223.48,223.32,4.47787927]
[1759850129065,20.8,223.5,223.33,0.68]
[1759850129391,4.97606864,223.49,223.35,20.8]
[1759850129574,4.97606864,223.49,223.36,0.68]
[1759850129870,4.97606864,223.49,223.37,46.42]
[1759850130079,4.97606864,223.47,223.37,46.42]
[1759850130277,20.8,223.48,223.37,46.42]
[1759850130278,4.97606864,223.48,223.38,0.68]
[1759850130464,0.7,223.51,223.38,0.68]
[1759850130668,4.97606864,223.49,223.38,0.68]
[1759850130868,0.7,223.51,223.38,0.68]
[1759850130869,4.97606864,223.5,223.39,4.47647611]
[1759850131082,4.97606864,223.5,223.4,0.68]
[1759850131287,0.7,223.49,223.41,46.38]
[1759850131490,20.8,223.53,223.42,46.38]
[1759850131682,20.8,223.45,223.38,0.68]
[1759850131884,4.97606864,223.49,223.39,46.36]
[1759850132392,4.97606864,223.49,223.38,0.68]
[1759850132592,20.8,223.54,223.39,46.34]
[1759850132798,25.77606864,223.5,223.4,0.68]
[1759850133094,20.8,223.5,223.4,0.68]
[1759850133284,20.8,223.5,223.4,5.15624575]
[1759850133473,20.8,223.5,223.41,0.144147]
[1759850133976,0.7,223.5,223.41,0.144147]
[1759850134176,0.7,223.5,223.25,13.5708575]
[1759850134394,13.67898725,223.57,223.21,13.42]
[1759850134395,0.7,223.49,223.31,20.8]
[1759850134699,0.7,223.52,223.31,20.8]
[1759850134908,4.97606864,223.5,223.31,20.8]
[1759850135090,4.97606864,223.5,223.35,20.8]
[1759850135405,4.97606864,223.5,223.36,46.28]
[1759850135700,20.8,223.54,223.37,0.68]
[1759850135886,26.47606864,223.54,223.37,0.68]
[1759850136275,5.8640333,223.57,223.39,20.8]
[1759850136577,4.9640333,223.54,223.4,46.92]
[1759850136780,5.6640333,223.54,223.4,46.92]
[1759850136991,4.9640333,223.52,223.41,46.22]
[1759850137206,4.9640333,223.5,223.41,46.22]
[1759850137398,4.9640333,223.52,223.42,0.68]
[1759850137705,0.7,223.53,223.43,34.9]
[1759850138080,0.7,223.56,223.44,0.68]
[1759850138280,20.8,223.55,223.44,0.68]
[1759850138472,0.2,223.57,223.46,20.8]
[1759850138692,0.2,223.57,223.47,0.66]
[1759850138892,0.2,223.57,223.47,46.82]
[1759850140178,0.2,223.57,223.48,0.66]
[1759850140476,0.2,223.57,223.48,46.78]
[1759850140795,5.1640333,223.57,223.49,46.76]
[1759850140994,0.2,223.57,223.49,46.76]
[1759850141679,5.1640333,223.57,223.43,34.9]
[1759850141883,0.2,223.57,223.44,46.72]
[1759850142083,4.9640333,223.55,223.44,46.72]
[1759850142281,5.1640333,223.57,223.45,0.66]
[1759850142599,0.2,223.57,223.47,20.8]
[1759850142806,0.2,223.57,223.48,0.66]
[1759850143191,0.2,223.57,223.52,20.8]
[1759850143383,21.103207,223.67,223.53,46.7]
[1759850143586,21.103207,223.67,223.54,0.66]
[1759850144086,4.9640333,223.65,223.55,46.0]
[1759850144301,4.9640333,223.63,223.55,46.0]
[1759850144602,21.52,223.64,223.55,46.0]
[1759850144801,21.52,223.64,223.56,45.98]
[1759850145207,4.96125607,223.58,223.47,0.66]
[1759850145396,4.96125607,223.57,223.48,45.96]
[1759850145591,0.72,223.58,223.48,45.96]
[1759850145906,20.8,223.64,223.49,0.66]
[1759850146206,21.103207,223.67,223.51,20.8]
[1759850146380,0.72,223.64,223.52,0.66]
[1759850146583,4.96125607,223.63,223.53,45.94]
[1759850146813,0.72,223.64,223.53,45.94]
[1759850147213,0.72,223.64,223.54,0.66]
[1759850147396,28.58716988,223.67,223.54,0.66]
[1759850147585,29.30716988,223.67,223.54,0.66]
[1759850148102,21.823207,223.67,223.55,45.88]
[1759850148308,21.823207,223.67,223.56,0.66]
[1759850148309,21.103207,223.67,223.56,0.66]
[1759850149098,21.103207,223.67,223.57,45.86]
[1759850149292,21.103207,223.67,223.56,0.66]
[1759850149293,0.72,223.66,223.56,0.66]
[1759850149510,0.72,223.66,223.57,45.86]
[1759850149912,21.103207,223.67,223.57,45.86]
[1759850150314,0.72,223.66,223.5,0.66]
[1759850150606,8.20242966,223.66,223.51,45.82]
[1759850150805,21.103207,223.67,223.52,0.66]
[1759850151110,21.103207,223.67,223.53,15.65785352]
[1759850151311,21.103207,223.67,223.54,0.66]
[1759850151695,21.103207,223.67,223.55,45.78]
[1759850151894,21.103207,223.67,223.56,0.66]
[1759850152512,21.823207,223.67,223.56,0.66]
[1759850154014,29.3063851,223.67,223.56,0.66]
[1759850154307,7.4831781,223.61,223.57,45.7]
[1759850154515,0.72,223.6,223.58,45.7]
[1759850154807,0.72,223.59,223.48,0.66]
[1759850154989,0.72,223.59,223.49,45.68]
[1759850155192,20.8,223.64,223.49,45.68]
[1759850155493,8.2031781,223.63,223.5,0.66]
[1759850155812,0.72,223.63,223.5,0.66]
[1759850156013,21.823207,223.67,223.53,20.8]
[1759850156212,21.823207,223.67,223.54,0.66]
[1759850156521,21.103207,223.67,223.54,0.66]
[1759850156813,21.103207,223.67,223.57,20.8]
[1759850156987,21.103207,223.67,223.58,46.34]
[1759850157489,21.103207,223.67,223.59,4.47247193]
[1759850157793,21.103207,223.67,223.62,20.8]
[1759850157988,21.103207,223.67,223.63,0.72]
[1759850158189,21.103207,223.67,223.64,0.72]
[1759850158918,21.103207,223.67,223.65,0.72]
[1759850159213,21.103207,223.67,223.66,80.44]
[1759850159614,21.103207,223.67,223.66,80.42]
[1759850159792,21.103207,223.67,223.66,84.89107216]
[1759850160196,21.103207,223.67,223.66,80.42]
[1759850160398,21.103207,223.67,223.66,85.61107216]
[1759850160598,0.2,223.74,223.69,20.8]
[1759850160797,0.2,223.77,223.69,20.8]
[1759850161011,0.2,223.77,223.69,21.33]
[1759850161210,0.2,223.77,223.73,20.8]
[1759850161411,0.2,223.77,223.66,50.50875256]
[1759850161412,0.69,223.76,223.66,39.33107216]
[1759850161715,0.2,223.77,223.7,20.8]
[1759850162093,0.2,223.77,223.7,21.33]
[1759850162314,0.2,223.77,223.7,0.53]
[1759850162516,0.2,223.77,223.74,20.8]
[1759850162914,0.2,223.77,223.75,0.53]
[1759850163114,0.2,223.77,223.74,20.8]
[1759850163297,0.2,223.77,223.75,0.53]
[1759850163497,0.2,223.77,223.76,0.53]
[1759850164816,0.2,223.77,223.75,4.46927374]
[1759850165015,0.2,223.77,223.76,45.91]
[1759850165218,0.2,223.77,223.73,4.46948821]
[1759850165522,0.2,223.77,223.76,25.269074]
[1759850166025,0.2,223.77,223.76,70.629074]
[1759850166323,0.2,223.77,223.76,45.36]
[1759850166507,0.2,223.77,223.76,66.16]
[1759850166707,0.89,223.77,223.76,66.16]
[1759850167032,0.89,223.77,223.76,20.8]
[1759850167033,0.2,223.77,223.76,20.8]
[1759850167330,0.2,223.77,223.76,45.32]
[1759850167331,0.89,223.77,223.76,45.32]
[1759850167508,0.2,223.77,223.76,45.32]
[1759850167909,0.2,223.77,223.76,45.85]
[1759850170731,0.2,223.77,223.76,21.33]
[1759850170929,0.2,223.77,223.76,66.55]
[1759850171329,0.2,223.77,223.76,21.33]
[1759850171535,0.2,223.77,223.76,66.53]
[1759850171920,0.2,223.77,223.76,70.449074]
[1759850172319,0.2,223.77,223.76,70.979074]
[1759850173043,1e-08,223.77,223.76,70.979074]
[1759850173339,0.2,223.86,223.76,82.15175901]
[1759850173839,0.2,223.86,223.77,0.53]
[1759850174232,0.2,223.88,223.84,34.22]
[1759850174531,0.2,223.88,223.87,20.8]
[1759850174718,0.2,223.88,223.87,65.88]
[1759850175117,0.2,223.88,223.87,45.41]
[1759850175118,1e-08,223.88,223.87,45.41]
[1759850175519,1e-08,223.88,223.87,49.87687809]
[1759850175832,1e-08,223.88,223.87,49.54687809]
[1759850176215,1e-08,223.88,223.87,70.30687809]
[1759850176741,1e-08,223.88,223.87,70.63687809]
[1759850177116,0.2,223.9,223.87,81.80407333]
[1759850177315,0.69,223.98,223.88,0.33]
[1759850177513,0.69,224.03,223.93,20.8]
[1759850177729,0.69,224.03,223.97,20.8]
[1759850177913,0.89,224.02,223.98,44.98]
[1759850178125,0.89,224.0,223.98,44.98]
[1759850178329,0.89,224.0,223.93,20.8]
[1759850178513,0.89,224.0,223.97,20.8]
[1759850178717,0.89,224.0,223.98,44.96]
[1759850178941,0.89,224.0,223.98,49.42463874]
[1759850179317,0.89,224.0,223.98,4.46463874]
[1759850179520,0.2,224.0,223.99,44.94]
[1759850180444,0.2,224.02,224.01,20.8]
[1759850180818,0.89,224.02,224.01,20.8]
[1759850181025,0.2,224.02,223.96,13.07516618]
[1759850181247,0.2,224.02,224.0,20.8]
[1759850181463,0.2,224.02,224.01,44.88]
[1759850181755,0.2,224.05,224.04,20.8]
[1759850182044,0.2,224.05,224.04,44.86]
[1759850182723,0.2,224.05,224.04,49.32348866]
[1759850183136,0.2,224.05,224.04,70.10348866]
[1759850183530,0.2,224.05,224.04,25.26348866]
[1759850184345,0.2,224.05,224.04,44.78]
[1759850184514,0.89,224.05,223.99,4.46448502]
[1759850184718,0.89,224.05,223.99,15.62569757]
[1759850185038,0.2,224.05,224.03,20.8]
[1759850185234,0.2,224.05,224.04,44.76]
[1759850186236,0.2,224.05,224.04,49.22348866]
[1759850186635,0.2,224.05,224.04,25.26348866]
[1759850186938,0.2,224.05,224.04,70.02348866]
[1759850187153,0.2,224.05,224.04,25.26348866]
[1759850187446,0.2,224.05,224.04,69.96348866]
[1759850187941,0.91,224.05,223.99,15.62569757]
[1759850188251,0.91,224.05,224.03,20.8]
[1759850188252,0.71,224.04,224.03,20.8]
[1759850188437,0.2,224.05,224.03,20.8]
[1759850188751,0.2,224.05,224.04,44.64]
[1759850189241,0.91,224.05,224.04,44.64]
[1759850189432,0.2,224.05,224.04,44.64]
[1759850190053,0.2,224.05,224.04,69.86348866]
[1759850190223,0.71,224.16,224.04,81.02221031]
[1759850190434,0.71,224.13,224.04,81.02221031]
[1759850191329,2.32830663,224.33,224.04,81.02221031]
[1759850191330,0.71,224.15,224.04,81.02221031]
[1759850191719,0.71,224.15,224.05,44.56]
[1759850191937,0.71,224.15,224.08,20.8]
[1759850192146,0.71,224.14,224.12,20.8]
[1759850192448,20.8,224.25,224.13,34.8]
[1759850192747,7.4831781,224.2,224.13,79.34]
[1759850192950,0.71,224.19,224.13,79.34]
[1759850193156,0.71,224.18,224.13,79.34]
[1759850193360,0.71,224.17,224.13,79.34]
[1759850193553,7.4831781,224.22,224.13,79.34]
[1759850193857,0.71,224.16,224.13,83.80152628]
[1759850194033,0.71,224.15,224.13,83.80152628]
[1759850194228,0.71,224.14,224.13,83.80152628]
[1759850194955,0.71,224.14,224.13,79.34]
[1759850195256,20.9,224.28,224.13,79.34]
[1759850195555,0.71,224.14,224.13,83.80169633]
[1759850195735,0.71,224.14,224.13,79.34]
[1759850196056,0.71,224.14,224.13,39.26169633]
[1759850196350,0.71,224.14,224.13,79.24]
[1759850197246,0.71,224.14,224.13,79.22]
[1759850197628,0.71,224.17,224.13,79.22]
[1759850197964,0.71,224.16,224.14,44.36]
[1759850198146,0.66,224.15,224.14,44.36]
[1759850198655,0.66,224.19,224.14,44.36]
[1759850198953,0.66,224.18,224.14,44.36]
[1759850199142,0.66,224.23,224.14,44.36]
[1759850199330,0.66,224.23,224.17,20.8]
[1759850199653,0.66,224.26,224.18,44.32]
[1759850199844,0.66,224.26,224.19,4.46050225]
[1759850200448,0.66,224.26,224.21,20.8]
[1759850200750,0.66,224.26,224.22,44.3]
[1759850200961,0.66,224.26,224.23,4.45970655]
[1759850201544,0.1,224.28,224.23,4.45970655]
[1759850201853,0.76,224.28,224.23,4.45970655]
[1759850202161,0.1,224.28,224.26,20.8]
[1759850202354,0.1,224.28,224.27,44.24]
[1759850202941,0.1,224.28,224.27,48.69891113]
[1759850203136,0.1,224.28,224.27,44.22]
[1759850203555,0.76,224.28,224.27,44.22]
[1759850203857,0.1,224.28,224.27,44.22]
[1759850204059,0.76,224.28,224.27,44.22]
[1759850204376,0.76,224.28,221.05,2087.1]
[1759850204377,0.76,224.28,224.15,4.46129823]
[1759850204665,0.66,224.27,224.25,34.78]
[1759850204868,0.66,224.26,224.16,34.78]
[1759850205044,0.66,224.25,224.17,44.14]
[1759850205240,0.1,224.28,224.17,44.14]
[1759850205241,0.66,224.24,224.17,44.14]
[1759850205436,0.66,224.24,224.17,48.60087362]
[1759850205641,0.1,224.28,224.17,59.88312414]
[1759850205848,0.76,224.28,224.17,59.88312414]
[1759850206049,0.76,224.28,224.2,20.8]
[1759850206246,0.76,224.28,224.21,64.92]
[1759850206460,0.1,224.28,224.21,64.92]
[1759850207059,0.1,224.28,224.25,4.4593088]
[1759850207264,0.1,224.28,224.26,44.1]
[1759850207470,0.1,224.28,224.27,44.08]
[1759850207972,0.1,224.28,224.25,4.4593088]
[1759850208140,0.1,224.28,224.26,44.06]
[1759850208853,0.1,224.28,224.27,44.04]
[1759850209249,0.1,224.28,224.27,48.49891113]
[1759850209560,0.1,224.28,224.27,44.04]
[1759850209754,0.1,224.28,224.27,44.0]
[1759850210942,0.1,224.28,224.27,64.93]
[1759850211163,0.1,224.28,224.27,44.13]